bitfinex/quotes_BTCUSD_20230106
["timestamp","ask_amount","ask_price","bid_price","bid_amount"]
[1673041566018,1.04720205,16942.0,16941.0,2.4817882]
[1673041566722,1.79497383,16942.0,16941.0,2.48164361]
[1673041566976,1.04720205,16942.0,16941.0,2.48164361]
[1673041567222,1.79497383,16942.0,16941.0,2.48164361]
[1673041567391,1.04720205,16942.0,16941.0,2.48164361]
[1673041567675,1.79497383,16942.0,16941.0,2.48164361]
[1673041568114,1.79497383,16942.0,16941.0,2.4817882]
[1673041568547,1.79497383,16942.0,16941.0,2.48164361]
[1673041569675,2.06058564,16942.0,16941.0,2.22964955]
[1673041570101,2.23788696,16942.0,16941.0,2.22964955]
[1673041572286,1.88373347,16942.0,16941.0,2.22964955]
[1673041572594,2.06061679,16942.0,16941.0,2.22964955]
[1673041573712,2.06061679,16942.0,16941.0,2.22979414]
[1673041574173,2.06061679,16942.0,16941.0,2.25800238]
[1673041574807,2.06061679,16942.0,16941.0,2.25814697]
[1673041575020,2.06061679,16942.0,16941.0,2.25800238]
[1673041576249,2.06061679,16942.0,16941.0,2.25814697]
[1673041576479,2.06061679,16942.0,16941.0,2.25800238]
[1673041577088,2.41477028,16942.0,16941.0,2.25800238]
[1673041577340,2.41228696,16942.0,16941.0,2.21078854]
[1673041577592,3.73137336,16942.0,16941.0,1.91078854]
[1673041577843,3.73137336,16942.0,16941.0,1.32050554]
[1673041577844,4.31355816,16942.0,16941.0,1.32050554]
[1673041579453,4.31355816,16942.0,16941.0,1.32078154]
[1673041580190,4.31427915,16942.0,16941.0,1.32078154]
[1673041581663,4.13987915,16942.0,16941.0,0.73049854]
[1673041581903,4.13987915,16942.0,16941.0,0.140276]
[1673041582161,3.69710436,16942.0,16941.0,0.140276]
[1673041582924,3.69710436,16942.0,16939.0,0.590325]
[1673041582925,0.07196221,16940.0,16939.0,0.590325]
[1673041583182,1.91544835,16940.0,16939.0,0.590325]
[1673041583426,3.83991232,16940.0,16939.0,0.590325]
[1673041583939,3.83990327,16940.0,16939.0,0.590325]
[1673041584436,3.83965901,16940.0,16938.0,0.61091167]
[1673041584681,2.14287756,16939.0,16938.0,0.02053567]
[1673041584938,2.89269855,16939.0,16938.0,0.02053567]
[1673041585707,2.89269855,16939.0,16937.0,1.180796]
[1673041585927,1.87640848,16938.0,16937.0,1.180796]
[1673041586236,1.87712947,16938.0,16937.0,1.180796]
[1673041586442,1.70041675,16938.0,16937.0,1.19904106]
[1673041587460,1.71141675,16938.0,16937.0,1.26904106]
[1673041587696,1.71141675,16938.0,16937.0,1.56904106]
[1673041587951,1.71141675,16938.0,16937.0,1.78498777]
[1673041588188,1.71141675,16938.0,16937.0,1.78534354]
[1673041588455,1.10475975,16938.0,16937.0,2.38526224]
[1673041589222,1.10475975,16938.0,16937.0,2.16931553]
[1673041590440,1.71141675,16938.0,16937.0,2.16931553]
[1673041592179,1.10475975,16938.0,16937.0,2.16931553]
[1673041592421,1.10475975,16938.0,16937.0,2.19766836]
[1673041593174,1.10475975,16938.0,16937.0,2.19761646]
[1673041593175,1.71141675,16938.0,16937.0,2.19761646]
[1673041593420,1.71141675,16938.0,16937.0,2.19753516]
[1673041593655,1.10475975,16938.0,16937.0,2.19753516]
[1673041593938,1.10404933,16938.0,16937.0,2.19753516]
[1673041594180,1.10404933,16938.0,16937.0,2.19761646]
[1673041594434,1.10404933,16938.0,16937.0,2.47633941]
[1673041594690,1.10404933,16938.0,16937.0,2.19753516]
[1673041594942,1.71070633,16938.0,16937.0,2.19753516]
[1673041596211,1.10404933,16938.0,16937.0,2.19753516]
[1673041598647,1.71070633,16938.0,16937.0,2.19753516]
[1673041598905,1.10404933,16938.0,16937.0,2.19753516]
[1673041599896,1.71070633,16938.0,16937.0,2.19753516]
[1673041600300,1.10404933,16938.0,16937.0,2.19753516]
[1673041600508,1.71070633,16938.0,16937.0,2.19753516]
[1673041600754,1.10404933,16938.0,16937.0,2.19753516]
[1673041601034,1.71070633,16938.0,16937.0,2.19753516]
[1673041601333,1.10404933,16938.0,16937.0,2.19753516]
[1673041602289,1.71070633,16938.0,16937.0,2.19753516]
[1673041603289,1.10404933,16938.0,16937.0,2.19753516]
[1673041604861,0.01172099,16938.0,16937.0,2.47633128]
[1673041605396,0.01172099,16938.0,16937.0,2.47641258]
[1673041606182,0.01172099,16938.0,16937.0,2.45789305]
[1673041606463,0.01172099,16938.0,16937.0,2.47869719]
[1673041606709,0.01172099,16938.0,16937.0,2.45034436]
[1673041606967,0.01172099,16938.0,16937.0,2.42954022]
[1673041607474,0.01172099,16938.0,16937.0,2.45789305]
[1673041607737,0.01172099,16938.0,16937.0,1.90016374]
[1673041609059,0.75715975,16938.0,16937.0,2.20016374]
[1673041609244,0.01172099,16938.0,16937.0,2.17181091]
[1673041609495,0.75715975,16938.0,16937.0,2.17181091]
[1673041610340,0.01172099,16938.0,16937.0,2.17181091]
[1673041611312,0.01172099,16938.0,16937.0,2.21337964]
[1673041611566,0.01172099,16938.0,16937.0,2.51337964]
[1673041612781,0.01172099,16938.0,16937.0,2.17195237]
[1673041616854,0.00244198,16938.0,16937.0,2.17195237]
[1673041617101,0.00244198,16938.0,16937.0,2.32719058]
[1673041617102,0.00172099,16938.0,16937.0,2.32719058]
[1673041617371,0.00172099,16938.0,16937.0,2.34439712]
[1673041618152,0.00101057,16938.0,16937.0,2.34439712]
[1673041618624,0.00101057,16938.0,16937.0,2.74145161]
[1673041619085,0.00101057,16938.0,16937.0,2.76120632]
[1673041619331,0.00101057,16938.0,16937.0,2.76106486]
[1673041619590,0.00101057,16938.0,16937.0,2.58467854]
[1673041621820,0.00101057,16938.0,16937.0,2.17041751]
[1673041623063,0.00101057,16938.0,16937.0,2.17055897]
[1673041623320,0.00101057,16938.0,16937.0,2.17041751]
[1673041624110,0.00101057,16938.0,16937.0,2.17055897]
[1673041625081,0.00101057,16938.0,16937.0,2.17041751]
[1673041626093,0.00101057,16938.0,16937.0,2.5497834]
[1673041626975,0.00101057,16938.0,16937.0,2.72616972]
[1673041628947,0.00101057,16938.0,16937.0,2.70641501]
[1673041629179,0.00101057,16938.0,16937.0,2.9709945]
[1673041629461,0.00101057,16938.0,16937.0,2.98764448]
[1673041631135,0.00101057,16938.0,16937.0,2.72306499]
[1673041631385,0.00101057,16938.0,16937.0,2.72292353]
[1673041632624,0.00101057,16938.0,16937.0,1.86731278]
[1673041633804,0.00101057,16938.0,16937.0,2.16731278]
[1673041634728,0.91316205,16939.0,16937.0,2.16731278]
[1673041634941,0.91316205,16939.0,16938.0,0.3]
[1673041635088,0.91316205,16939.0,16938.0,1.480776]
[1673041635293,0.91316205,16939.0,16938.0,1.81558488]
[1673041635529,0.91316205,16939.0,16938.0,1.83530662]
[1673041636015,0.94816205,16939.0,16938.0,1.83930662]
[1673041636730,0.94816205,16939.0,16938.0,1.50463919]
[1673041636972,0.94816205,16939.0,16938.0,1.50449774]
[1673041642330,0.94816205,16939.0,16938.0,1.50463919]
[1673041642582,0.95715148,16939.0,16938.0,1.50463919]
[1673041642837,0.95715148,16939.0,16938.0,1.50449774]
[1673041642838,0.21171272,16939.0,16938.0,1.50449774]
[1673041643079,0.035,16939.0,16938.0,1.50449774]
[1673041643332,0.035,16939.0,16938.0,1.50463919]
[1673041643822,0.035,16939.0,16938.0,1.85080802]
[1673041644366,0.035,16939.0,16938.0,1.50463919]
[1673041644612,0.035,16939.0,16938.0,1.50449774]
[1673041644874,0.035,16939.0,16938.0,1.50463919]
[1673041645636,0.21171272,16939.0,16938.0,1.50449774]
[1673041645894,0.21171272,16939.0,16938.0,1.50463919]
[1673041646155,0.21171272,16939.0,16938.0,1.50449774]
[1673041646910,0.21171272,16939.0,16938.0,1.87711037]
[1673041647136,0.035,16939.0,16938.0,1.87725182]
[1673041648126,0.035,16939.0,16938.0,2.05363814]
[1673041650593,0.035,16939.0,16938.0,2.05349669]
[1673041651117,0.035,16939.0,16938.0,1.87711037]
[1673041652690,0.21171272,16939.0,16938.0,1.87711037]
[1673041652937,0.035,16939.0,16938.0,1.87711037]
[1673041653187,0.21171272,16939.0,16938.0,1.87711037]
[1673041653429,0.035,16939.0,16938.0,1.87711037]
[1673041654166,0.21171272,16939.0,16938.0,1.50449774]
[1673041654672,0.95715148,16939.0,16938.0,1.50449774]
[1673041656457,0.21171272,16939.0,16938.0,1.50449774]
[1673041656709,0.95715148,16939.0,16938.0,1.50449774]
[1673041656967,0.21171272,16939.0,16938.0,1.50449774]
[1673041657675,0.21171272,16939.0,16938.0,1.87711037]
[1673041658676,0.035,16939.0,16938.0,1.87711037]
[1673041658922,0.035,16939.0,16938.0,2.05349669]
[1673041663576,0.035,16939.0,16938.0,2.61555471]
[1673041667220,0.035,16939.0,16938.0,2.05349669]
[1673041667527,2.11183845,16939.0,16938.0,1.20449774]
[1673041667734,2.48081756,16939.0,16938.0,1.20449774]
[1673041668750,2.48081756,16939.0,16938.0,1.50449774]
[1673041669019,3.19567219,16939.0,16938.0,1.484776]
[1673041669301,3.19567219,16939.0,16938.0,1.184776]
[1673041669523,3.63763616,16939.0,16938.0,1.184776]
[1673041669788,3.37256708,16939.0,16938.0,1.184776]
[1673041670252,3.19617871,16939.0,16938.0,1.184776]
[1673041670524,2.58952171,16939.0,16938.0,1.184776]
[1673041670782,3.94541674,16939.0,16938.0,1.48470204]
[1673041671781,4.12015104,16939.0,16938.0,1.18470204]
[1673041672277,4.12015104,16939.0,16938.0,1.17470204]
[1673041674208,3.54730138,16939.0,16938.0,1.47470204]
[1673041674451,3.81274391,16939.0,16938.0,1.47470204]
[1673041674698,3.37077994,16939.0,16938.0,1.47470204]
[1673041676276,3.37077994,16939.0,16935.0,0.00795548]
[1673041676277,6.62724867,16939.0,16935.0,0.00795548]
[1673041676542,0.17695248,16936.0,16935.0,0.60583291]
[1673041676793,2.49866063,16936.0,16935.0,0.60583291]
[1673041677054,2.49866063,16936.0,16935.0,0.00795548]
[1673041677306,2.32416063,16936.0,16935.0,0.00795548]
[1673041677558,2.50097946,16936.0,16935.0,0.00795548]
[1673041677862,2.14707451,16936.0,16935.0,0.00795548]
[1673041678316,2.28307451,16936.0,16935.0,0.01195548]
[1673041679054,2.28307451,16936.0,16935.0,0.43725062]
[1673041679313,2.01764579,16936.0,16935.0,0.43725062]
[1673041679575,2.857976,16936.0,16935.0,0.01195548]
[1673041680848,3.21188095,16936.0,16935.0,0.01195548]
[1673041681113,3.21176933,16936.0,16935.0,0.01195548]
[1673041681357,3.03506212,16936.0,16935.0,0.01195548]
[1673041682632,3.21175416,16936.0,16935.0,0.01195548]
[1673041682905,2.85784921,16936.0,16935.0,0.01195548]
[1673041683387,3.21175416,16936.0,16935.0,0.01195548]
[1673041683635,3.40047566,16936.0,16935.0,0.01195548]
[1673041683902,3.2231726,16936.0,16935.0,0.01195548]
[1673041684407,2.85775906,16936.0,16935.0,0.01195548]
[1673041685933,2.59233034,16936.0,16935.0,0.01195548]
[1673041686458,2.85775906,16936.0,16935.0,0.01195548]
[1673041686771,3.26963695,16936.0,16935.0,0.01195548]
[1673041686968,3.4017711,16936.0,16935.0,0.01195548]
[1673041687209,4.31434895,16936.0,16935.0,0.01195548]
[1673041687467,4.77229636,16936.0,16935.0,0.00795548]
[1673041687715,0.48713646,16934.0,16933.0,0.00795644]
[1673041687973,2.19246342,16934.0,16933.0,0.00795644]
[1673041689273,2.45996342,16934.0,16933.0,0.01295644]
[1673041689769,3.10383102,16934.0,16933.0,0.01295644]
[1673041695134,2.92933102,16934.0,16933.0,0.01295644]
[1673041698390,2.92933102,16934.0,16933.0,0.00288984]
[1673041702454,3.25920352,16934.0,16932.0,0.30918537]
[1673041702701,0.781157,16933.0,16932.0,0.30918537]
[1673041702950,1.47603239,16933.0,16932.0,0.30918537]
[1673041703682,1.47603239,16933.0,16932.0,0.00918537]
[1673041703929,1.49703239,16933.0,16932.0,0.01318537]
[1673041704431,2.24670235,16933.0,16932.0,0.01318537]
[1673041707398,2.42990602,16933.0,16932.0,0.01318537]
[1673041707656,2.24670235,16933.0,16932.0,0.01318537]
[1673041708889,2.42313604,16933.0,16932.0,0.01318537]
[1673041713656,2.68778662,16933.0,16932.0,0.01318537]
[1673041714412,2.08112962,16933.0,16932.0,0.01318537]
[1673041714667,2.68778662,16933.0,16932.0,0.01318537]
[1673041714928,2.42313604,16933.0,16932.0,0.01318537]
[1673041715432,1.81647904,16933.0,16932.0,0.01318537]
[1673041715690,3.18784668,16933.0,16932.0,0.01318537]
[1673041715938,2.86525788,16933.0,16932.0,0.01318537]
[1673041717714,3.09298849,16933.0,16932.0,0.01318537]
[1673041718278,2.48633149,16933.0,16932.0,0.01318537]
[1673041718509,3.35851579,16933.0,16932.0,0.01318537]
[1673041718776,2.9161346,16933.0,16932.0,0.01318537]
[1673041719031,3.35851579,16933.0,16932.0,0.01318537]
[1673041719799,3.6656324,16933.0,16932.0,0.01318537]
[1673041720288,3.6656324,16933.0,16931.0,1.78751049]
[1673041720289,0.03681463,16932.0,16931.0,1.78751049]
[1673041720538,1.22918594,16932.0,16931.0,2.08751049]
[1673041720791,1.83584294,16932.0,16931.0,2.08751049]
[1673041721010,1.22918594,16932.0,16931.0,2.08751049]
[1673041721259,1.83584294,16932.0,16931.0,2.4147136]
[1673041721509,1.84984294,16932.0,16931.0,2.4537136]
[1673041722224,1.24318594,16932.0,16931.0,2.4537136]
[1673041722475,1.84984294,16932.0,16931.0,2.12651049]
[1673041722727,1.84984294,16932.0,16931.0,2.15486332]
[1673041723729,2.88464789,16932.0,16931.0,2.12651049]
[1673041724233,2.88464789,16932.0,16931.0,0.63938688]
[1673041724496,3.61182104,16932.0,16931.0,0.04878588]
[1673041724749,3.78858142,16932.0,16931.0,0.04878588]
[1673041725753,4.36108485,16932.0,16931.0,0.04878588]
[1673041727796,4.80219334,16932.0,16931.0,0.04878588]
[1673041728053,4.0059072,16932.0,16931.0,0.04878588]
[1673041728304,4.09606988,16932.0,16931.0,0.04878588]
[1673041729776,3.56479871,16932.0,16931.0,0.04878588]
[1673041730471,4.15874638,16932.0,16931.0,0.04878588]
[1673041730721,3.66022019,16932.0,16931.0,0.04878588]
[1673041731076,4.01446319,16932.0,16931.0,0.04878588]
[1673041731353,3.40780619,16932.0,16931.0,0.34878588]
[1673041731614,4.01446319,16932.0,16931.0,0.34878588]
[1673041731837,3.15076572,16932.0,16931.0,1.57665805]
[1673041732077,1.92414699,16932.0,16931.0,1.57665805]
[1673041732827,1.92414699,16932.0,16931.0,1.45265345]
[1673041734170,1.92414699,16932.0,16931.0,2.04328545]
[1673041734693,1.92414699,16932.0,16931.0,1.74328545]
[1673041734946,1.92414699,16932.0,16931.0,2.04328545]
[1673041738408,2.10128724,16932.0,16931.0,2.04328545]
[1673041738903,2.27840003,16932.0,16931.0,2.04328545]
[1673041741665,1.59750003,16932.0,16931.0,2.04328545]
[1673041741929,1.59723634,16932.0,16931.0,2.36706886]
[1673041742185,0.84783007,16932.0,16931.0,2.36700126]
[1673041742958,0.84783007,16932.0,16931.0,2.36706886]
[1673041743178,0.84783007,16932.0,16931.0,2.36700126]
[1673041743986,1.59750003,16932.0,16931.0,2.36700126]
[1673041744217,1.59750003,16932.0,16931.0,2.04328545]
[1673041744676,1.24325703,16932.0,16931.0,2.04328545]
[1673041745111,0.97759738,16932.0,16931.0,2.04328545]
[1673041745857,0.80048459,16932.0,16931.0,2.04328545]
[1673041746121,0.80048459,16932.0,16931.0,2.28890239]
[1673041747626,0.05081463,16932.0,16931.0,2.28890239]
[1673041748427,0.05081463,16932.0,16931.0,1.77566682]
[1673041748686,0.05081463,16932.0,16931.0,2.40232668]
[1673041748975,0.05081463,16932.0,16931.0,2.46406458]
[1673041749230,0.05071324,16932.0,16931.0,1.83740472]
[1673041749785,0.05071324,16932.0,16931.0,2.441629]
[1673041750525,0.05071324,16932.0,16931.0,1.83740472]
[1673041750768,0.05071324,16932.0,16931.0,2.46964]
[1673041751551,0.05071324,16932.0,16931.0,1.83740472]
[1673041752035,0.05071324,16932.0,16931.0,2.43530892]
[1673041753107,0.05071324,16932.0,16931.0,2.43524132]
[1673041753350,0.05071324,16932.0,16931.0,2.18962438]
[1673041755276,0.05071324,16932.0,16931.0,2.18969198]
[1673041755539,0.05071324,16932.0,16931.0,2.18962438]
[1673041756575,0.05071324,16932.0,16931.0,2.18969198]
[1673041757541,0.05071324,16932.0,16931.0,2.18962438]
[1673041757800,0.05071324,16932.0,16931.0,2.58703818]
[1673041760082,0.05071324,16932.0,16931.0,2.58203818]
[1673041762641,0.05071324,16932.0,16931.0,2.58210578]
[1673041763078,0.05071324,16932.0,16931.0,2.58203818]
[1673041766329,0.05071324,16932.0,16931.0,2.18462438]
[1673041768602,0.05071324,16932.0,16931.0,2.18469198]
[1673041768841,0.05071324,16932.0,16931.0,2.18462438]
[1673041769854,0.05071324,16932.0,16931.0,2.36117557]
[1673041770847,0.05071324,16932.0,16931.0,2.36124317]
[1673041771099,0.05071324,16932.0,16931.0,2.36117557]
[1673041774297,0.05071324,16932.0,16931.0,2.36124317]
[1673041775009,0.05071324,16932.0,16931.0,2.36117557]
[1673041776044,0.80018761,16932.0,16931.0,1.82295408]
[1673041777325,0.80018761,16932.0,16931.0,2.12295408]
[1673041778551,1.58369709,16932.0,16931.0,2.12295408]
[1673041778984,0.97704009,16932.0,16931.0,2.12295408]
[1673041779256,1.58369709,16932.0,16931.0,2.12295408]
[1673041780540,1.84935674,16932.0,16931.0,1.52504988]
[1673041781792,2.02385674,16932.0,16931.0,1.52504988]
[1673041786819,1.75819709,16932.0,16931.0,1.52504988]
[1673041788782,2.02385674,16932.0,16931.0,1.52504988]
[1673041789535,1.75819709,16932.0,16931.0,1.52504988]
[1673041790990,2.02385674,16932.0,16931.0,1.52504988]
[1673041791203,1.75819709,16932.0,16931.0,1.52504988]
[1673041791448,2.02385674,16932.0,16931.0,1.52504988]
[1673041791783,1.84935674,16932.0,16931.0,1.52504988]
[1673041793219,1.84935674,16932.0,16931.0,1.22504988]
[1673041799831,1.84935674,16932.0,16931.0,1.52504988]
[1673041801098,1.58369709,16932.0,16931.0,1.52504988]
[1673041807006,0.97704009,16932.0,16931.0,1.52504988]
[1673041807298,0.97704009,16932.0,16931.0,1.79858202]
[1673041807545,1.24269974,16932.0,16931.0,1.52504988]
[1673041807790,1.84935674,16932.0,16931.0,1.52504988]
[1673041809520,2.76952894,16932.0,16931.0,1.52504988]
[1673041809768,2.59267646,16932.0,16931.0,1.22504988]
[1673041811221,2.59267646,16932.0,16931.0,0.63441788]
[1673041811462,3.03549794,16932.0,16931.0,0.63441788]
[1673041811706,3.33806189,16932.0,16931.0,0.63441788]
[1673041811958,3.51256189,16932.0,16931.0,0.63441788]
[1673041812230,2.94433829,16932.0,16931.0,0.63441788]
[1673041813237,3.20988753,16932.0,16931.0,0.63441788]
[1673041813482,2.94433829,16932.0,16931.0,0.63441788]
[1673041813726,3.51381569,16932.0,16931.0,0.63441788]
[1673041814745,2.94433829,16932.0,16931.0,0.63441788]
[1673041814985,3.20994643,16932.0,16931.0,0.63441788]
[1673041815244,2.76712495,16932.0,16931.0,0.63441788]
[1673041815487,2.76712495,16932.0,16931.0,1.52504988]
[1673041815733,2.90735636,16932.0,16931.0,1.52504988]
[1673041815984,2.94433829,16932.0,16931.0,1.52504988]
[1673041816236,2.90735488,16932.0,16931.0,1.52504988]
[1673041816488,3.17306314,16932.0,16931.0,1.52504988]
[1673041816734,2.73024166,16932.0,16931.0,1.52504988]
[1673041817719,2.16426502,16932.0,16931.0,1.52504988]
[1673041817967,2.34142866,16932.0,16931.0,2.51642426]
[1673041818214,2.16426502,16932.0,16931.0,2.51642426]
[1673041818457,1.9872332,16932.0,16931.0,2.51642426]
[1673041821531,1.9872332,16932.0,16931.0,2.24289232]
[1673041821791,1.8127332,16932.0,16931.0,2.24289232]
[1673041822301,1.98976502,16932.0,16931.0,2.24289232]
[1673041823061,2.16693786,16932.0,16931.0,2.24289232]
[1673041823812,1.8127423,16932.0,16931.0,2.24289232]
[1673041826253,1.98976502,16932.0,16931.0,2.24289232]
[1673041830659,1.98976502,16932.0,16931.0,2.58663621]
[1673041830914,1.98976502,16932.0,16931.0,2.58656861]
[1673041832411,1.98976502,16932.0,16931.0,2.24289232]
[1673041837149,1.95305178,16932.0,16931.0,2.20617908]
[1673041838610,1.95305178,16932.0,16931.0,2.15617908]
[1673041838848,1.77602418,16932.0,16931.0,2.15617908]
[1673041839090,1.77602409,16932.0,16931.0,2.15617908]
[1673041839577,1.77602409,16932.0,16931.0,2.49118405]
[1673041840783,1.77602409,16932.0,16931.0,2.44118405]
[1673041841030,0.58367359,16932.0,16931.0,1.8999604]
[1673041841294,0.58367359,16932.0,16931.0,2.16523831]
[1673041841545,0.58367359,16932.0,16931.0,2.46728081]
[1673041841779,0.58367359,16932.0,16931.0,2.73255872]
[1673041843231,0.58367359,16932.0,16931.0,2.5295488]
[1673041843987,0.58367359,16932.0,16931.0,2.88232145]
[1673041844456,0.58367359,16932.0,16931.0,2.5295488]
[1673041845239,0.58367359,16932.0,16931.0,2.88232145]
[1673041845476,0.58367359,16932.0,16931.0,3.6200192]
[1673041845720,0.58367359,16932.0,16931.0,4.08953843]
[1673041845960,0.58367359,16932.0,16931.0,4.26592926]
[1673041846215,0.58367359,16932.0,16931.0,4.0893532]
[1673041846460,0.58367359,16932.0,16931.0,3.35810426]
[1673041848417,0.58367359,16932.0,16931.0,3.00533161]
[1673041848655,0.58367359,16932.0,16931.0,3.1817855]
[1673041849172,0.58367359,16932.0,16931.0,3.35810426]
[1673041850202,0.58367359,16932.0,16931.0,3.00728349]
[1673041850687,0.58367359,16932.0,16931.0,2.67227852]
[1673041851183,0.58367359,16932.0,16931.0,2.36963833]
[1673041851941,0.58367359,16932.0,16931.0,2.10483642]
[1673041853982,0.58367359,16932.0,16931.0,2.19079136]
[1673041854488,0.58367359,16932.0,16931.0,2.01629136]
[1673041854742,0.58367359,16932.0,16931.0,2.19274324]
[1673041854991,0.58367359,16932.0,16931.0,2.01629136]
[1673041855236,0.58367359,16932.0,16931.0,2.01635896]
[1673041855488,0.58367359,16932.0,16931.0,2.71743677]
[1673041861269,0.58367359,16932.0,16931.0,2.80019996]
[1673041861515,0.58367359,16932.0,16931.0,2.42445426]
[1673041862039,0.58367359,16932.0,16931.0,3.11298504]
[1673041862297,0.58367359,16932.0,16931.0,2.89938531]
[1673041863029,0.58358058,16932.0,16931.0,2.89938531]
[1673041864288,0.58358058,16932.0,16931.0,3.23455207]
[1673041864504,0.58358058,16932.0,16931.0,2.96975016]
[1673041866585,0.58358058,16932.0,16931.0,2.33415235]
[1673041866810,0.58358058,16932.0,16931.0,2.93189395]
[1673041868516,0.58358058,16932.0,16931.0,2.92534669]
[1673041872368,0.58358058,16932.0,16931.0,3.1901486]
[1673041873341,0.58358058,16932.0,16931.0,2.92534669]
[1673041873587,0.58358058,16932.0,16931.0,3.1901486]
[1673041874344,0.58358058,16932.0,16931.0,3.48929579]
[1673041874587,0.58358058,16932.0,16931.0,2.92527909]
[1673041875336,0.58358058,16932.0,16931.0,2.92534669]
[1673041875575,0.58358058,16932.0,16931.0,2.75084669]
[1673041876330,0.58358058,16932.0,16931.0,3.0156486]
[1673041876825,0.58358058,16932.0,16931.0,2.49102267]
[1673041877614,0.58358058,16932.0,16931.0,2.22622076]
[1673041878586,0.58358058,16932.0,16931.0,2.79080994]
[1673041880817,0.58358058,16932.0,16931.0,2.96713071]
[1673041881547,0.58358058,16932.0,16931.0,3.84370677]
[1673041881799,0.58358058,16932.0,16931.0,4.4375839]
[1673041883886,0.58458058,16932.0,16931.0,4.4375839]
[1673041884126,0.58358058,16932.0,16931.0,4.4375839]
[1673041887573,0.58358058,16932.0,16931.0,3.7375839]
[1673041888072,0.5834772,16932.0,16931.0,3.7375839]
[1673041889058,0.5834772,16932.0,16931.0,3.7375163]
[1673041889295,0.5834772,16932.0,16931.0,4.4375163]
[1673041890024,0.5844772,16932.0,16931.0,4.4375163]
[1673041890245,0.5834772,16932.0,16931.0,4.4375163]
[1673041891799,0.5834772,16932.0,16931.0,4.70277955]
[1673041892498,0.5834772,16932.0,16931.0,3.56140158]
[1673041892750,0.5834772,16932.0,16931.0,3.56146918]
[1673041894002,0.5834772,16932.0,16931.0,3.73829057]
[1673041894505,0.5834772,16932.0,16931.0,3.38551792]
[1673041895012,0.5834772,16932.0,16931.0,3.56146918]
[1673041896228,0.5844772,16932.0,16931.0,3.56146918]
[1673041896482,0.5834772,16932.0,16931.0,3.56146918]
[1673041898742,0.5834772,16932.0,16931.0,3.56140158]
[1673041901729,0.5834772,16932.0,16931.0,3.73819994]
[1673041902218,0.5834772,16932.0,16931.0,3.73826754]
[1673041902466,0.5834772,16932.0,16931.0,3.56146918]
[1673041905042,1.32296299,16932.0,16931.0,2.96752445]
[1673041905311,1.32296299,16932.0,16931.0,1.92652062]
[1673041905816,1.50013086,16932.0,16931.0,1.74970128]
[1673041906064,1.50013086,16932.0,16931.0,1.67953098]
[1673041906320,1.76583912,16932.0,16931.0,1.67953098]
[1673041907598,1.50013086,16932.0,16931.0,1.98803098]
[1673041908113,1.76583912,16932.0,16931.0,1.98803098]
[1673041909586,1.50013086,16932.0,16931.0,1.98803098]
[1673041911828,1.67323086,16932.0,16931.0,1.98803098]
[1673041913065,1.93893912,16932.0,16931.0,1.98803098]
[1673041913326,1.67323086,16932.0,16931.0,1.98803098]
[1673041913811,2.27988786,16932.0,16931.0,1.98803098]
[1673041914051,1.67323086,16932.0,16931.0,1.98803098]
[1673041914297,2.27988786,16932.0,16931.0,1.98803098]
[1673041914790,1.67323086,16932.0,16931.0,1.98803098]
[1673041915004,2.27988786,16932.0,16931.0,1.98803098]
[1673041915521,1.67323086,16932.0,16931.0,1.98803098]
[1673041917749,1.49606299,16932.0,16931.0,1.98803098]
[1673041918217,1.49606299,16932.0,16931.0,2.30528554]
[1673041919531,1.49106299,16932.0,16931.0,2.29528554]
[1673041922465,1.31796299,16932.0,16931.0,2.29528554]
[1673041923695,1.31796299,16932.0,16931.0,2.28528554]
[1673041924476,1.49256299,16932.0,16931.0,2.28528554]
[1673041926175,1.49256299,16932.0,16931.0,2.28535314]
[1673041926442,1.49256299,16932.0,16931.0,2.28528554]
[1673041926949,1.49256299,16932.0,16931.0,1.96803098]
[1673041927926,1.49256299,16932.0,16931.0,1.96794951]
[1673041933341,1.49256299,16932.0,16931.0,1.95794951]
[1673041936921,2.27638786,16932.0,16931.0,1.95794951]
[1673041937158,2.09921999,16932.0,16931.0,1.95794951]
[1673041937644,2.27638786,16932.0,16931.0,1.95794951]
[1673041937898,1.66973086,16932.0,16931.0,1.95794951]
[1673041939774,1.70671427,16932.0,16931.0,1.95794951]
[1673041940388,1.10005727,16932.0,16931.0,1.95794951]
[1673041941456,0.9228894,16932.0,16931.0,1.95794951]
[1673041941721,0.9228894,16932.0,16931.0,2.91823069]
[1673041941968,0.18340361,16932.0,16931.0,2.91823069]
[1673041942229,0.18340361,16932.0,16931.0,2.88987786]
[1673041942468,0.18340361,16932.0,16931.0,2.88994546]
[1673041942718,0.18340361,16932.0,16931.0,3.0667648]
[1673041943224,0.18340361,16932.0,16931.0,3.0666972]
[1673041943478,0.18340361,16932.0,16931.0,3.1284351]
[1673041943981,0.18340361,16932.0,16931.0,3.39369835]
[1673041944244,0.18340361,16932.0,16931.0,3.39363075]
[1673041944494,0.18340361,16932.0,16931.0,3.39369835]
[1673041944747,0.18340361,16932.0,16931.0,3.39363075]
[1673041945510,0.00880361,16932.0,16931.0,3.62554004]
[1673041945761,0.00880361,16932.0,16931.0,3.39363075]
[1673041947007,0.00880361,16932.0,16931.0,3.42300816]
[1673041947506,0.00880361,16932.0,16931.0,3.15774491]
[1673041948031,0.00880361,16932.0,16931.0,2.98092557]
[1673041948290,0.74855255,16932.0,16931.0,2.98092557]
[1673041949026,0.74855255,16932.0,16931.0,2.64899722]
[1673041949998,0.74855255,16932.0,16931.0,2.61961981]
[1673041950497,0.74855255,16932.0,16931.0,2.55794951]
[1673041950766,0.92572042,16932.0,16931.0,2.55794951]
[1673041951218,0.92572042,16932.0,16931.0,1.95794951]
[1673041952928,1.19142868,16932.0,16931.0,1.95794951]
[1673041954711,0.92572042,16932.0,16931.0,1.95794951]
[1673041957740,1.19142868,16932.0,16931.0,1.95794951]
[1673041958248,0.92572042,16932.0,16931.0,1.95794951]
[1673041958732,1.19142868,16932.0,16931.0,1.95794951]
[1673041958986,0.92572042,16932.0,16931.0,1.95794951]
[1673041959242,0.92572042,16932.0,16931.0,2.73417034]
[1673041960513,0.92572042,16932.0,16931.0,2.73424512]
[1673041960812,0.18597148,16932.0,16931.0,2.73424512]
[1673041961087,0.00880361,16932.0,16931.0,2.73424512]
[1673041965380,0.00870105,16932.0,16931.0,2.73424512]
[1673041965777,0.00870105,16932.0,16931.0,2.91106446]
[1673041971454,0.00870105,16932.0,16931.0,3.17632771]
[1673041971695,0.00870105,16932.0,16931.0,2.91106446]
[1673041976848,0.00870105,16932.0,16931.0,2.94044187]
[1673041977347,0.00870105,16932.0,16931.0,2.91106446]
[1673041978592,0.00870105,16932.0,16931.0,2.91098968]
[1673041978829,0.00870105,16932.0,16931.0,2.73417034]
[1673041979091,0.7483174,16932.0,16931.0,2.73417034]
[1673041980570,0.00870105,16932.0,16931.0,2.73417034]
[1673041980822,0.00870105,16932.0,16931.0,2.91098968]
[1673041983047,0.74825097,16932.0,16931.0,2.91098968]
[1673041983300,0.74825097,16932.0,16931.0,2.73417034]
[1673041984550,1.35490797,16932.0,16931.0,2.73417034]
[1673041984792,1.53207584,16932.0,16931.0,2.73417034]
[1673041985081,1.53207584,16932.0,16931.0,2.55794951]